[Event "French Top 16-A 2024"]
[Site "Chartres"]
[Date "2024.06.04"]
[Round "6.9"]
[White "Martirosyan, Haik M."]
[Black "Willems, Niels"]
[Result "1-0"]
[ECO "D41"]
[WhiteElo "2679"]
[BlackElo "2329"]
[Annotator "TA"]
[PlyCount "79"]
[EventDate "2024.06.01"]
[EventType "team-tourn"]
[EventCountry "FRA"]
[SourceTitle "playchess.com"]
[Source "ChessBase"]
[SourceQuality "1"]
[TimeControl "40/5400+30:1800+30"]

{[%evp 26,79,35,19,0,0,3,6,15,0,0,0,0,0,0,0,0,0,71,77,77,51,218,218,192,92,110,20,19,20,17,17,16,16,15,18,17,17,109,41,95,95,135,132,195,174,264,264,475,500,616,616,2657,1190,1157,1123]} 1. d4 {[%emt 0:00:15]} Nf6 {[%emt 0:00:08]} 2. Nf3 {[%emt 0:00:08]} d5 {[%emt 0:00:09]} 3. c4 {[%emt 0:00:28]} e6 {[%emt 0:00:09]} 4. Nc3 {[%emt 0:00:06]} c5 {[%emt 0:00:08]} 5. cxd5 {[%emt 0:00:19]} Nxd5 {[%emt 0:00:10]} 6. e4 {[%emt 0:00:28]} Nxc3 {[%emt 0:00:07]} 7. bxc3 {[%emt 0:00:02]} cxd4 {[%emt 0:00:08]} 8. cxd4 {[%emt 0:00:02]} Bb4+ {[%emt 0:00:10]} 9. Bd2 {[%emt 0:00:03]} Bxd2+ {[%emt 0:00:07]} 10. Qxd2 {[%emt 0:00:01]} O-O {[%emt 0:00:13]} 11. Bc4 {[%emt 0:00:17]} Nd7 {[%emt 0:00:09]} 12. O-O {[%emt 0:01:12]} b6 {[%emt 0:00:07]} 13. Rfe1 {[%emt 0:00:06]} Bb7 {[%emt 0:00:09]} 14. Rad1 {[%emt 0:00:04]} Rc8 {[%emt 0:00:27]} 15. Bb3 {[%emt 0:00:06]} h6 {[%emt 0:00:48]} 16. Re3 {[%emt 0:07:30]} Nf6 {[%emt 0:02:45] The position is equal.} 17. Qe1 {[%emt 0:02:02][%cal Od4d5]} Re8 {[%emt 0:04:00]} 18. Ne5 {[%emt 0:05:29]} Qc7 {[%emt 0:04:16]} 19. f4 {[%emt 0:07:35]} Nd7 {[%emt 0:07:24]} 20. Nxf7 {[%emt 0:03:10]} Kxf7 {[%emt 0:00:13]} 21. f5 {[%emt 0:00:03]} Kg8 {[%emt 0:03:42]} (21... Nf6 $11) 22. Bxe6+ $16 {[%emt 0:09:38]} Kh8 {[%emt 0:01:49]} 23. e5 {[%emt 0:00:09][%mdl 1024] White has strong compensation.} Qc6 $2 {[%emt 0:22:38]} (23... Qd8 $14) 24. d5 $18 {[%emt 0:02:14] Active counter play!} Qc5 {[%emt 0:00:32][%cal Od7e5] [#] aiming for ...Nxe5!} 25. Kh1 {[%emt 0:02:15]} (25. Bxd7 Rxe5 26. Rdd3 (26. Bxc8 $2 Rxe3 27. Qf2 Bxc8 $19) 26... Rd8 $11) (25. Qg3 $1 $18 {has better winning chances.} Rxe6 26. fxe6) 25... Rcd8 $16 {[%emt 0:05:38] [#]} 26. Rc3 {[%emt 0:17:39]} (26. d6 $1 $16) 26... Qb4 $1 $11 {[%emt 0:07:09][%cal Od7e5] ...Nxe5! would now be deadly.} 27. Rc7 {[%emt 0:03:02][%csl LRb4,LRb7,LRd7]} Qxe1+ {[%emt 0:01:07]} 28. Rxe1 {[%emt 0:00:01]} Nc5 {[%emt 0:05:23]} 29. Bf7 $36 {[%emt 0:01:39][%mdl 2048] White fights for an advantage.} Bxd5 $1 {[%emt 0:02:31]} 30. Bxe8 {[%emt 0:00:10]} Rxe8 {[%emt 0:00:01]} 31. e6 {[%emt 0:04:14]} a5 {[%emt 0:26:20]} (31... g6 $11) 32. a3 {[%emt 0:03:36]} (32. Rb1 $16) 32... a4 {[%emt 0:04:09]} ({Black should try} 32... Ne4 $14) 33. Re5 $16 {[%emt 0:03:46]} Bb3 {[%emt 0:00:44][%cal Og7g6]} 34. h3 {[%emt 0:02:12]} h5 {[%emt 0:00:39]} (34... Nd3 $16 35. Re2 (35. Rb5 g6 $11) 35... Nf4) 35. Rc6 $18 {[%emt 0:01:33]} Nd3 {[%emt 0:00:01]} (35... Rb8 $142 36. Kh2 Kg8) 36. Rb5 {[%emt 0:02:12]} g6 $2 {[%emt 0:01:27]} (36... Kg8 37. Rcxb6 (37. Rbxb6 Nf4 $18) 37... Bc4) 37. Rcxb6 {[%emt 0:01:40] White is clearly winning.} ({Weaker is} 37. Rbxb6 gxf5 38. Rc7 Nf4 $11) 37... Kg8 {[%emt 0:02:15]} 38. Rb8 {[%emt 0:02:36]} (38. fxg6 Kg7 39. Rxh5 Rxe6 40. Rxe6 Bxe6 $14) 38... Kf8 {[%emt 0:00:49]} 39. fxg6 {[%emt 0:01:13][%cal Bf5g6,Bg6g7][%mdl 32]} Bxe6 {[%emt 0:00:46]} 40. g7+ {[%emt 0:00:24] Weighted Error Value: White=0.16 (very precise) /Black=0.51.  Loses game:     	---       	Black=1      Mistake:       	White=3     	Black=6      Inaccurate:     	---       	Black=2      OK:         	White=9     	Black=7      Best:        	White=6     	---        Strong:       	---       	Black=2} 1-0

[Event "French Top 16-A 2024"]
[Site "Chartres"]
[Date "2024.06.04"]
[Round "6.10"]
[White "Lupulescu, Constantin"]
[Black "Gharamian, Tigran"]
[Result "1/2-1/2"]
[ECO "E39"]
[WhiteElo "2588"]
[BlackElo "2588"]
[Annotator "TA"]
[PlyCount "31"]
[EventDate "2024.06.01"]
[EventType "team-tourn"]
[EventCountry "FRA"]
[SourceTitle "playchess.com"]
[Source "ChessBase"]
[SourceQuality "1"]
[TimeControl "40/5400+30:1800+30"]

{[%evp 14,31,37,21,14,15,43,25,0,0,0,-1,0,0,0,-6,-3,-8,0,0]} 1. d4 {[%emt 0:00:03]} Nf6 {[%emt 0:00:06]} 2. c4 {[%emt 0:00:04]} e6 {[%emt 0:00:07]} 3. Nc3 {[%emt 0:00:03]} Bb4 {[%emt 0:00:09]} 4. Qc2 {[%emt 0:00:04]} c5 {[%emt 0:00:05]} 5. dxc5 {[%emt 0:00:08]} O-O {[%emt 0:00:25]} 6. a3 {[%emt 0:00:20]} Bxc5 {[%emt 0:00:09]} 7. Nf3 {[%emt 0:00:44]} d5 {[%emt 0:00:07]} 8. Bg5 {[%emt 0:02:33]} Be7 {[%emt 0:04:06]} 9. e3 {[%emt 0:02:06]} h6 {[%emt 0:00:35]} 10. Bxf6 {[%emt 0:16:02]} Bxf6 {[%emt 0:00:28] White has an edge.} 11. cxd5 {[%emt 0:04:59] The position is equal.} exd5 {[%emt 0:04:06]} 12. Be2 {[%emt 0:01:50]} Nc6 {[%emt 0:12:12]} 13. O-O {[%emt 0:01:10]} Be6 {[%emt 0:00:06]} 14. Rfd1 {[%emt 0:05:27]} Rc8 {[%emt 0:01:13]} 15. Rac1 {[%emt 0:05:22]} Qa5 {[%emt 0:13:33]} 16. Qb1 {[%emt 0:07:02] An uneventful encounter.   Weighted Error Value: White=0.06 (flawless) /Black=0.06 (flawless) .  Inaccurate:     	---       	Black=1      OK:         	White=2     	Black=3} 1/2-1/2

[Event "French Top 16-A 2024"]
[Site "Chartres"]
[Date "2024.06.04"]
[Round "6.10"]
[White "Malassagne, Raphael"]
[Black "Movsesian, Sergei"]
[Result "0-1"]
[ECO "D02"]
[WhiteElo "2260"]
[BlackElo "2618"]
[Annotator "TA"]
[PlyCount "42"]
[EventDate "2024.06.01"]
[EventType "team-tourn"]
[EventCountry "FRA"]
[SourceTitle "playchess.com"]
[Source "ChessBase"]
[SourceQuality "1"]
[TimeControl "40/5400+30:1800+30"]

{[%evp 11,42,0,8,22,27,0,-8,-18,-17,-36,-38,-61,-51,-66,-62,-66,-58,-57,-62,-77,-53,-87,-66,-128,-132,-149,-136,-172,-137,-288,-267,-271,-287]} 1. d4 {[%emt 0:00:04]} d5 {[%emt 0:00:28]} 2. Bf4 {[%emt 0:00:28]} Nf6 {[%emt 0:01:12]} 3. e3 {[%emt 0:00:13]} e6 {[%emt 0:00:23]} 4. Nd2 {[%emt 0:00:50]} c5 {[%emt 0:01:09]} 5. Ngf3 {[%emt 0:00:23]} Nc6 {[%emt 0:01:09]} 6. c3 {[%emt 0:01:49]} cxd4 {[%emt 0:00:38]} 7. exd4 {[%emt 0:00:06]} Nh5 {[%emt 0:00:26]} 8. Bg3 {[%emt 0:00:04]} g6 {[%emt 0:02:48]} 9. Bb5 {[%emt 0:07:22] The position is equal.} Bg7 {[%emt 0:08:19]} 10. Ne5 {[%emt 0:37:01]} O-O {[%emt 0:17:31]} 11. Nd3 {[%emt 0:17:12]} f6 {[%emt 0:06:29]} 12. Bxc6 {[%emt 0:05:40]} bxc6 {[%emt 0:01:56]} 13. Qa4 {[%emt 0:00:14]} Nxg3 {[%emt 0:10:49]} 14. hxg3 {[%emt 0:00:12]} Qb6 {[%emt 0:00:21]} 15. O-O-O {[%emt 0:04:38]} e5 {[%emt 0:01:57]} 16. Nc5 {[%emt 0:04:31]} Bf5 {[%emt 0:06:29]} 17. g4 {[%emt 0:02:25]} Bxg4 $17 {[%emt 0:03:47]} 18. f3 {[%emt 0:00:27]} Bc8 $40 {[%emt 0:00:59][%mdl 128] White is in trouble.} 19. Rh4 {[%emt 0:01:32]} f5 {[%emt 0:03:36]} 20. Nd3 $2 {[%emt 0:13:16] [#]} (20. f4 $17 {was necessary.}) 20... exd4 $19 {[%emt 0:02:07]} 21. cxd4 {[%emt 0:00:07]} Bf6 {[%emt 0:00:31] White got outplayed after the opening.   Weighted Error Value: White=0.32/Black=0.05 (flawless) .  Mistake:       	White=2     	---        Inaccurate:     	White=2     	---        OK:         	White=2     	Black=12} 0-1

[Event "French Top 16-A 2024"]
[Site "Chartres"]
[Date "2024.06.04"]
[Round "6.11"]
[White "Van Foreest, Jorden"]
[Black "Karthik Venkataraman"]
[Result "1/2-1/2"]
[ECO "E11"]
[WhiteElo "2665"]
[BlackElo "2606"]
[Annotator "TA"]
[PlyCount "89"]
[EventDate "2024.06.01"]
[EventType "team-tourn"]
[EventCountry "FRA"]
[SourceTitle "playchess.com"]
[Source "ChessBase"]
[SourceQuality "1"]
[TimeControl "40/5400+30:1800+30"]

{[%evp 14,89,29,25,26,0,4,0,17,0,20,20,0,9,45,50,47,43,49,37,44,39,30,41,33,33,43,28,49,50,60,56,78,49,57,50,61,55,42,41,51,41,40,13,30,14,27,15,20,22,16,17,14,16,17,0,0,0,0,0,72,0,0,0,0,0,0,0,0,0,0,0,10,0,0,0,2,0]} 1. d4 {[%emt 0:00:06]} Nf6 {[%emt 0:00:36]} 2. c4 {[%emt 0:00:08]} e6 {[%emt 0:00:10]} 3. Nf3 {[%emt 0:00:12]} d5 {[%emt 0:00:18]} 4. g3 {[%emt 0:00:17]} Bb4+ {[%emt 0:01:08]} 5. Bd2 {[%emt 0:00:10]} Be7 {[%emt 0:00:42]} 6. Bg2 {[%emt 0:00:09]} c6 {[%emt 0:00:23]} 7. Qc2 {[%emt 0:01:54]} a5 {[%emt 0:02:16] E11: Bogo-Indian.} 8. O-O {[%emt 0:01:15]} O-O {[%emt 1:28:57]} 9. Rc1 {[%emt 0:04:59]} Nbd7 {[%emt 0:00:00]} 10. a3 {[%emt 0:00:07]} h6 {[%emt 0:00:00]} 11. e3 {[%emt 0:00:05]} Ne4 $146 {[%emt 0:00:00]} ({Predecessor:} 11... Re8 12. Be1 Bf8 13. Nbd2 b5 14. cxb5 cxb5 15. Bf1 Ba6 16. Nb3 a4 17. Na5 Qb6 {½-½ Gelfand,B (2676)-Ding,L (2791) Legends of Chess Prelim rapid 2020 (1.1)}) 12. Nc3 {[%emt 0:03:49]} Nxd2 {[%emt 0:00:00]} 13. Nxd2 {[%emt 0:00:34]} f5 {[%emt 0:00:00]} 14. Rab1 {[%emt 0:06:43]} Nf6 {[%emt 0:00:00]} 15. b4 {[%emt 0:00:52]} Bd7 {[%emt 0:00:00]} 16. c5 {[%emt 0:04:37]} axb4 {[%emt 0:00:00]} 17. axb4 {[%emt 0:00:22]} Ne4 {[%emt 0:00:00]} 18. Nf3 {[%emt 0:02:04]} Nxc3 {[%emt 0:00:00]} 19. Qxc3 {[%emt 0:00:06]} Bf6 {[%emt 0:00:00]} 20. Bf1 {[%emt 0:03:32]} Qe8 {[%emt 0:00:00]} 21. Ra1 {[%emt 0:05:54]} Qh5 {[%emt 0:00:00]} 22. Be2 {[%emt 0:01:05]} Rfc8 {[%emt 0:00:00]} 23. Ra3 {[%emt 0:17:18]} Qe8 {[%emt 0:00:00]} 24. Rca1 {[%emt 0:01:13]} Rxa3 {[%emt 0:00:00]} 25. Qxa3 {[%emt 0:00:37]} e5 {[%emt 0:00:00]} 26. dxe5 {[%emt 0:00:27]} Bxe5 {[%emt 0:00:00]} 27. Nxe5 {[%emt 0:00:10]} Qxe5 {[%emt 0:00:00]} 28. Bd3 {[%emt 0:01:19]} Re8 {[%emt 0:00:00]} 29. Qc1 {[%emt 0:00:23]} Kf8 {[%emt 0:00:00]} 30. Ra7 {[%emt 0:05:49]} d4 $1 {[%emt 0:00:00]} 31. Rxb7 {[%emt 0:01:10]} Bc8 {[%emt 0:00:00]} 32. Ra7 {[%emt 0:01:33]} dxe3 {[%emt 0:00:00]} 33. fxe3 {[%emt 0:00:23]} Be6 {[%emt 0:00:00]} 34. Be2 {[%emt 0:11:27]} Bd5 {[%emt 0:00:00]} 35. Kf2 {[%emt 0:00:09]} Qe4 {[%emt 0:00:31]} 36. Qc3 {[%emt 0:00:13]} Qg2+ {[%emt 0:00:13]} 37. Ke1 {[%emt 0:00:03]} Bf7 {[%emt 0:00:13]} 38. Bc4 {[%emt 0:15:12]} Qh1+ {[%emt 0:01:03]} 39. Kd2 {[%emt 0:00:17]} Rd8+ {[%emt 0:00:48]} 40. Kc2 $1 {[%emt 0:00:18]} Qe4+ {[%emt 0:00:41]} 41. Bd3 {[%emt 0:30:45]} Qg2+ {[%emt 0:30:08]} (41... Qxe3 $2 {perishes.} 42. Rxf7+ (42. Bxf5 $2 {loses.} Qe2+ 43. Kb1 Rd1+ $19) 42... Ke8 43. Rxf5 (43. Bxf5 Qe2+ 44. Kb3 Kxf7 $17) 43... Qxd3+ 44. Qxd3 $18) 42. Qd2 {[%emt 0:03:21]} Qd5 {[%emt 0:05:07]} 43. Qc3 {[%emt 0:00:09]} Qg2+ {[%emt 0:00:07]} 44. Qd2 {[%emt 0:00:02]} Qd5 {[%emt 0:00:07]} 45. Qc3 {[%emt 0:00:06]} 1/2-1/2

[Event "French Top 16-A 2024"]
[Site "Chartres"]
[Date "2024.06.04"]
[Round "6.11"]
[White "Moussard, Jules"]
[Black "Saya, Ethan"]
[Result "1-0"]
[ECO "D36"]
[WhiteElo "2611"]
[BlackElo "2234"]
[Annotator "TA"]
[PlyCount "77"]
[EventDate "2024.06.01"]
[EventType "team-tourn"]
[EventCountry "FRA"]
[SourceTitle "playchess.com"]
[Source "ChessBase"]
[SourceQuality "1"]
[TimeControl "40/5400+30:1800+30"]

{[%evp 23,77,34,41,49,82,90,114,58,52,61,41,38,68,59,120,121,121,117,120,129,128,110,108,123,126,128,129,122,118,109,112,98,102,102,133,156,251,243,262,256,252,248,268,276,278,277,381,362,392,262,586,315,29989,29990,29990,29991]} 1. c4 {[%emt 0:01:10]} e6 {[%emt 0:01:37]} 2. Nc3 {[%emt 0:00:09]} d5 {[%emt 0:00:29]} 3. d4 {[%emt 0:00:23]} Nf6 {[%emt 0:00:19]} 4. cxd5 {[%emt 0:00:36]} exd5 {[%emt 0:00:07]} 5. Bg5 {[%emt 0:00:42]} c6 {[%emt 0:00:12]} 6. e3 {[%emt 0:01:46]} Be7 {[%emt 0:00:06]} 7. Bd3 {[%emt 0:01:15]} O-O {[%emt 0:00:22]} 8. Qc2 {[%emt 0:01:03]} Nbd7 {[%emt 0:00:19]} 9. Nf3 {[%emt 0:02:10]} Re8 {[%emt 0:03:51]} 10. h3 {[%emt 0:02:17]} Nf8 {[%emt 0:07:53]} 11. O-O {[%emt 0:10:44]} Ne4 {[%emt 0:04:24]} 12. Bf4 {[%emt 0:06:26]} Nd6 {[%emt 0:01:19]} 13. b4 {[%emt 0:08:12]} g6 {[%emt 0:04:08]} 14. b5 {[%emt 0:02:35] White has more active pieces. The black rooks are passive.} Bf5 {[%emt 0:01:15] [#]} 15. bxc6 {[%emt 0:02:05]} (15. Bxd6 $1 $16 Bxd3 16. Bxe7 (16. Qxd3 Bxd6 17. Rfd1 Qa5 $11) 16... Bxc2 17. Bxd8 Raxd8 18. bxc6 bxc6 19. Rfc1) 15... Bxd3 $14 {[%emt 0:01:17]} 16. Qxd3 {[%emt 0:00:19]} bxc6 {[%emt 0:00:02]} 17. Rfc1 {[%emt 0:05:13]} Qa5 {[%emt 0:03:29]} 18. Ne5 {[%emt 0:02:48]} Rec8 {[%emt 0:00:31]} (18... Rac8 $1 $14) 19. Ne2 $36 {[%emt 0:00:52][%mdl 2048] White is really pushing.} Qa4 {[%emt 0:02:15]} 20. Qc2 {[%emt 0:01:49]} Qxc2 {[%emt 0:03:05]} 21. Rxc2 {[%emt 0:01:33]} c5 {[%emt 0:00:11]} 22. dxc5 {[%emt 0:04:55]} Nc4 {[%emt 0:00:44]} 23. Nxc4 {[%emt 0:00:29]} dxc4 {[%emt 0:00:10]} 24. Rxc4 {[%emt 0:01:17] [#] aiming for c6.} Rxc5 {[%emt 0:00:13]} 25. Rxc5 {[%emt 0:02:01]} Bxc5 {[%emt 0:00:03]} 26. Nc3 {[%emt 0:00:30]} Rd8 {[%emt 0:03:34]} 27. Ne4 {[%emt 0:02:04]} Be7 {[%emt 0:01:07]} 28. Rb1 {[%emt 0:01:50]} Ne6 {[%emt 0:00:28]} 29. Rb7 {[%emt 0:01:40][%csl LRa7,LRe7]} Nxf4 {[%emt 0:00:33]} (29... Rd1+ $16 30. Kh2 Kf8) 30. Rxe7 {[%emt 0:00:21][%mdl 4096] Endgame. KRN-KRN} Rd1+ {[%emt 0:00:35]} 31. Kh2 {[%emt 0:00:06]} Nd3 {[%emt 0:00:22]} 32. Rxa7 {[%emt 0:00:28]} Ra1 {[%emt 0:00:54]} 33. g4 {[%emt 0:00:31]} h6 {[%emt 0:01:07]} 34. h4 {[%emt 0:00:51][%cal Bh3h4,Bh4g5][%mdl 32]} Ne5 {[%emt 0:00:25]} 35. g5 {[%emt 0:00:23]} hxg5 {[%emt 0:00:12]} 36. hxg5 {[%emt 0:00:05] Ra8+ would now be deadly.} Rb1 $2 {[%emt 0:00:22]} (36... Kf8 {is more resistant.} 37. Kg2 Nc6) 37. Kg2 {[%emt 0:00:50]} Rb2 $2 {[%emt 0:00:40]} (37... Kf8 $18 38. Nf6 Nc6) 38. Ra8+ {[%emt 0:00:51]} Kg7 {[%emt 0:00:05]} 39. Nf6 {[%emt 0:00:14] Weighted Error Value: White=0.21 (precise) /Black=0.58.  Mistake:       	White=1     	Black=4      Inaccurate:     	White=2     	Black=4      OK:         	White=10    	Black=11     Best:        	White=2     	Black=2} 1-0

[Event "French Top 16-A 2024"]
[Site "Chartres"]
[Date "2024.06.04"]
[Round "6.12"]
[White "Loiseau, Quentin"]
[Black "Hamdouchi, Hicham"]
[Result "1/2-1/2"]
[ECO "D26"]
[WhiteElo "2411"]
[BlackElo "2528"]
[Annotator "TA"]
[PlyCount "29"]
[EventDate "2024.06.01"]
[EventType "team-tourn"]
[EventCountry "FRA"]
[SourceTitle "playchess.com"]
[Source "ChessBase"]
[SourceQuality "1"]
[TimeControl "40/5400+30:1800+30"]

{[%evp 11,29,19,30,31,32,24,41,35,49,0,38,44,36,43,40,-35,-20,-80,-54,-31]} 1. Nf3 {[%emt 0:00:05]} d5 {[%emt 0:01:47]} 2. d4 {[%emt 0:01:12]} Nf6 {[%emt 0:00:15]} 3. c4 {[%emt 0:00:11]} dxc4 {[%emt 0:01:14]} 4. e3 {[%emt 0:00:35]} e6 {[%emt 0:01:16]} 5. Bxc4 {[%emt 0:00:16]} a6 {[%emt 0:00:47]} 6. O-O {[%emt 0:00:31]} Be7 {[%emt 0:00:22]} 7. Qe2 {[%emt 0:02:21]} b5 {[%emt 0:01:17]} 8. Bd3 {[%emt 0:00:37]} Nbd7 {[%emt 0:00:13]} 9. a4 {[%emt 0:08:23] White is slightly better.} Bb7 {[%emt 0:00:57]} 10. e4 {[%emt 0:03:34]} (10. axb5 $14 axb5 11. Rxa8 Qxa8 12. Bxb5) 10... b4 {[%emt 0:22:17]} 11. Nbd2 {[%emt 0:02:11]} c5 {[%emt 0:00:51]} 12. e5 {[%emt 0:00:59]} Nd5 {[%emt 0:00:27]} 13. Ne4 {[%emt 0:08:37]} ({Better is} 13. Nb3 $14) 13... cxd4 $15 {[%emt 0:02:30]} 14. Bd2 {[%emt 0:26:31]} (14. Bg5 $11 {keeps the balance.} Qb8 15. Bxe7 (15. Nxd4 Bxg5 16. Nxg5 Qxe5 $15) 15... Kxe7 16. Qd2 (16. Nxd4 Qxe5 17. Nf3 Qf4 $17)) 14... Qb8 {[%emt 0:14:45]} 15. Ng3 {[%emt 0:04:41] Weighted Error Value: White=0.30/Black=0.13 (very precise) .  Mistake:       	White=3     	---        Inaccurate:     	---       	Black=2      OK:         	White=4     	Black=1      Best:        	---       	Black=1} 1/2-1/2

[Event "French Top 16-A 2024"]
[Site "Chartres"]
[Date "2024.06.04"]
[Round "6.12"]
[White "Warnier, Yanis"]
[Black "Cornette, Matthieu"]
[Result "0-1"]
[ECO "C72"]
[WhiteElo "2171"]
[BlackElo "2568"]
[Annotator "TA"]
[PlyCount "50"]
[EventDate "2024.06.01"]
[EventType "team-tourn"]
[EventCountry "FRA"]
[SourceTitle "playchess.com"]
[Source "ChessBase"]
[SourceQuality "1"]
[TimeControl "40/5400+30:1800+30"]

{[%evp 9,50,34,33,14,29,4,24,12,14,0,0,0,0,-11,-8,-12,0,-24,-27,-17,7,0,9,10,17,-19,-13,-32,-58,-69,-56,-195,-204,-299,-253,-270,-290,-314,-291,-602,-589,-1091,-954]} 1. e4 {[%emt 0:00:09]} e5 {[%emt 0:00:52]} 2. Nf3 {[%emt 0:00:08]} Nc6 {[%emt 0:00:07]} 3. Bb5 {[%emt 0:00:08]} a6 {[%emt 0:00:18]} 4. Ba4 {[%emt 0:00:05]} d6 {[%emt 0:01:27]} 5. O-O {[%emt 0:00:52]} Bd7 {[%emt 0:00:40][%cal Bc8d7,Bd7g4,Bg4e6][%mdl 32]} 6. d3 {[%emt 0:02:07]} g6 {[%emt 0:01:05]} 7. c4 {[%emt 0:04:04]} Bg7 {[%emt 0:02:50]} 8. Nc3 {[%emt 0:01:05] White has an edge.} Nge7 {[%emt 0:06:30]} 9. Rb1 {[%emt 0:19:06]} O-O {[%emt 0:06:09]} 10. b4 {[%emt 0:02:27]} Bg4 {[%emt 0:05:49]} 11. Bxc6 {[%emt 0:06:47]} bxc6 {[%emt 0:05:32]} 12. h3 {[%emt 0:00:50]} Be6 {[%emt 0:00:15]} 13. Qe2 {[%emt 0:05:48]} h6 {[%emt 0:08:15]} 14. Rd1 {[%emt 0:12:50]} Qc8 {[%emt 0:04:14]} 15. d4 {[%emt 0:03:27]} exd4 {[%emt 0:08:18]} 16. Nxd4 {[%emt 0:00:07]} Re8 {[%emt 0:01:09]} 17. Nxe6 {[%emt 0:06:24]} Qxe6 {[%emt 0:00:10]} 18. Qd3 {[%emt 0:09:11]} g5 {[%emt 0:04:17]} 19. f3 {[%emt 0:09:38]} Ng6 {[%emt 0:01:38] Black is more active.} 20. c5 {[%emt 0:00:40] [#] White does not recover from this.} (20. Ne2 $15) 20... dxc5 $1 $19 {[%emt 0:03:58]} 21. bxc5 {[%emt 0:00:39] [#]} (21. Ne2 {was worth a try.}) 21... Rad8 $1 {[%emt 0:06:44][%mdl 512]} 22. Qxd8 {[%emt 0:02:29]} (22. Qc2 Qc4) 22... Rxd8 {[%emt 0:00:04]} 23. Rxd8+ {[%emt 0:00:05]} Kh7 {[%emt 0:00:05]} 24. Nd1 {[%emt 0:00:35]} (24. Bb2) 24... Qxa2 {[%emt 0:01:22]} 25. Rb7 {[%emt 0:00:53]} Qe2 {[%emt 0:01:26] Weighted Error Value: White=0.88/Black=0.03 (flawless) .  Mistake:       	White=3     	---        Inaccurate:     	White=2     	---        OK:         	White=4     	Black=8      Best:        	---       	Black=3} 0-1